bitfinex/quotes_SOLUSD_20250719
["timestamp","ask_amount","ask_price","bid_price","bid_amount"]
[1752951302549,5.65387007,176.87,176.86,1e-08]
[1752951303453,5.65387007,176.87,176.86,0.67000001]
[1752951304764,44.97358603,176.88,176.86,0.67000001]
[1752951305369,39.32,176.88,176.86,0.67000001]
[1752951305538,39.32,176.88,176.86,4.29552672]
[1752951305748,44.97356247,176.88,176.86,4.29552672]
[1752951305946,44.97356247,176.88,176.87,0.67]
[1752951310568,44.97356247,176.88,176.86,0.67000001]
[1752951310874,49.31908918,176.88,176.86,1e-08]
[1752951312657,48.59908918,176.88,176.86,1e-08]
[1752951312858,44.97356247,176.88,176.86,1e-08]
[1752951313680,44.97356247,176.88,176.86,0.67000001]
[1752951315686,44.97356247,176.88,176.86,1e-08]
[1752951315975,4.34552671,176.87,176.86,1e-08]
[1752951319097,9.99939678,176.87,176.86,1e-08]
[1752951321060,8.69359545,176.87,176.86,1e-08]
[1752951324090,7.97359545,176.87,176.86,1e-08]
[1752951324466,8.64359545,176.87,176.86,1e-08]
[1752951325892,8.70359545,176.87,176.86,1e-08]
[1752951326090,44.97387007,176.87,176.86,0.67000001]
[1752951327388,39.32,176.87,176.86,0.67000001]
[1752951330293,39.32,176.87,176.86,4.29359601]
[1752951331618,0.06,176.87,176.86,4.29359601]
[1752951334878,4.353596,176.87,176.86,1e-08]
[1752951335081,10.00746607,176.87,176.86,1e-08]
[1752951343012,9.33746607,176.87,176.86,1e-08]
[1752951343593,10.00746607,176.87,176.86,1e-08]
[1752951344719,30.41574604,176.87,176.84,1e-08]
[1752951344920,33.247192,176.85,176.84,1e-08]
[1752951345296,39.57170147,176.85,176.84,1e-08]
[1752951345816,39.57170147,176.85,176.82,0.03]
[1752951346001,3.623596,176.83,176.82,0.03]
[1752951346419,4.293596,176.83,176.82,0.03]
[1752951346620,21.07827997,176.83,176.8,0.03]
[1752951346824,3.623596,176.81,176.8,0.03]
[1752951347303,9.94938469,176.81,176.8,0.03]
[1752951355002,9.27938469,176.81,176.8,0.03]
[1752951355612,9.96938469,176.81,176.8,0.03]
[1752951363113,9.27938469,176.81,176.8,0.03]
[1752951364027,9.07938469,176.81,176.8,0.03]
[1752951364216,9.27938469,176.81,176.8,0.03]
[1752951364417,9.96938469,176.81,176.8,0.03]
[1752951364927,8.66763075,176.81,176.8,0.03]
[1752951365310,7.97763075,176.81,176.8,0.03]
[1752951366233,8.66763075,176.81,176.8,0.03]
[1752951367917,7.97763075,176.81,176.8,0.71]
[1752951381350,5.65578869,176.81,176.8,0.71]
[1752951383254,39.26,176.82,176.8,3.03184206]
[1752951383443,39.26,176.82,176.81,2.32184206]
[1752951383648,44.91508034,176.84,176.81,3.03184206]
[1752951383957,44.91508034,176.84,176.82,0.71]
[1752951385645,2.32184206,176.83,176.82,0.71]
[1752951386532,47.2369224,176.84,176.82,0.71]
[1752951389746,2.32184206,176.83,176.8,0.03]
[1752951389943,2.32184206,176.81,176.8,0.03]
[1752951391642,5.65578869,176.81,176.8,0.03]
[1752951391832,5.65578869,176.81,176.8,0.74]
[1752951396056,9.28187304,176.81,176.8,0.03]
[1752951400066,5.65578869,176.81,176.8,0.03]
[1752951403836,9.28187304,176.81,176.8,0.03]
[1752951404883,5.65578869,176.81,176.8,0.03]
[1752951405046,5.65578869,176.81,176.8,0.74]
[1752951405551,39.26,176.82,176.8,4.36608435]
[1752951405760,39.26,176.82,176.81,3.62608435]
[1752951405949,39.26,176.82,176.81,4.33608435]
[1752951406148,39.26,176.82,176.81,0.71]
[1752951407846,39.26,176.83,176.81,4.33608435]
[1752951408047,39.26,176.83,176.82,0.71]
[1752951413267,39.32,176.83,176.82,0.71]
[1752951414365,48.60130513,176.83,176.81,0.03]
[1752951415062,47.29591286,176.83,176.81,0.03]
[1752951415276,47.29591286,176.83,176.81,0.73]
[1752951415849,44.97522078,176.83,176.82,0.7]
[1752951417279,39.32,176.83,176.82,0.7]
[1752951418770,0.06,176.83,176.82,0.7]
[1752951420055,0.06,176.83,176.82,3.02069208]
[1752951424599,0.06,176.83,176.82,0.7]
[1752951425590,0.06,176.83,176.81,0.03]
[1752951425788,3.06069208,176.83,176.81,0.03]
[1752951425972,39.24,176.82,176.81,0.03]
[1752951426481,44.89546883,176.82,176.81,0.03]
[1752951431685,45.57546883,176.82,176.81,0.03]
[1752951432589,44.89546883,176.82,176.81,0.03]
[1752951434069,44.89546883,176.82,176.81,0.73]
[1752951434798,44.89546883,176.82,176.81,0.03]
[1752951437274,44.89546883,176.82,176.81,0.73]
[1752951437901,39.24,176.82,176.81,0.73]
[1752951438413,39.3,176.83,176.81,3.05069208]
[1752951438582,39.3,176.83,176.82,3.02069208]
[1752951439003,0.06,176.83,176.82,3.02069208]
[1752951445083,0.06,176.83,176.82,0.7]
[1752951447497,0.06,176.83,176.81,0.7]
[1752951448012,0.06,176.83,176.82,0.67]
[1752951450989,0.06,176.83,176.81,0.03]
[1752951451189,41.56069208,176.82,176.81,0.03]
[1752951451496,42.22069208,176.82,176.81,0.03]
[1752951452908,47.87616091,176.82,176.81,0.03]
[1752951453097,49.18273826,176.82,176.81,0.03]
[1752951458195,45.55546883,176.82,176.81,0.03]
[1752951458395,49.18273826,176.82,176.81,0.03]
[1752951458718,49.24273826,176.82,176.81,0.03]
[1752951467941,66.02742223,176.82,176.81,1e-08]
[1752951471540,16.78468397,176.81,176.79,0.03]
[1752951471717,42.90726943,176.8,176.79,0.03]
[1752951471918,43.56726943,176.8,176.79,0.03]
[1752951472743,49.22337802,176.8,176.79,0.03]
[1752951475136,45.59610859,176.8,176.79,0.03]
[1752951475317,49.22337802,176.8,176.79,0.03]
[1752951478941,47.91849284,176.8,176.79,0.03]
[1752951480632,5.65610859,176.8,176.79,0.72]
[1752951480957,39.3,176.8,176.79,0.72]
[1752951481919,44.95610859,176.8,176.79,0.72]
[1752951483619,48.58296323,176.8,176.79,0.72]
[1752951483844,48.58296323,176.8,176.79,0.03]
[1752951484149,49.27296323,176.8,176.79,0.03]
[1752951484947,48.58296323,176.8,176.79,0.03]
[1752951486245,49.27296323,176.8,176.79,0.03]
[1752951492965,48.58296323,176.8,176.79,0.03]
[1752951493260,48.58296323,176.8,176.79,0.72]
[1752951495051,48.58296323,176.8,176.79,0.03]
[1752951499952,44.95610859,176.8,176.79,0.03]
[1752951500149,48.58296323,176.8,176.79,0.72]
[1752951501460,48.58296323,176.8,176.79,0.03]
[1752951501639,48.64296323,176.8,176.79,0.03]
[1752951503454,48.64296323,176.8,176.79,0.73]
[1752951504438,48.64296323,176.8,176.79,0.03]
[1752951504753,48.64296323,176.8,176.79,0.73]
[1752951505055,48.64296323,176.8,176.79,0.03]
[1752951505227,45.01610859,176.8,176.79,0.73]
[1752951505431,48.64296323,176.8,176.79,0.73]
[1752951505653,48.64296323,176.8,176.79,0.03]
[1752951506956,47.33783938,176.8,176.79,0.03]
[1752951507258,45.01610859,176.8,176.79,0.03]
[1752951507441,47.33783938,176.8,176.79,0.03]
[1752951508262,47.33783938,176.8,176.79,0.73]
[1752951509758,47.33783938,176.8,176.79,0.03]
[1752951512938,64.82252335,176.8,176.79,0.03]
[1752951513137,64.82252335,176.8,176.79,1e-08]
[1752951514746,45.71610859,176.8,176.79,1e-08]
[1752951514949,47.31783938,176.8,176.79,1e-08]
[1752951515349,5.71610859,176.8,176.79,0.70000001]
[1752951515556,44.99610859,176.8,176.79,0.70000001]
[1752951518858,47.31783938,176.8,176.79,1e-08]
[1752951519066,49.32329636,176.8,176.79,1e-08]
[1752951520877,48.62329636,176.8,176.79,1e-08]
[1752951523367,49.32329636,176.8,176.79,1e-08]
[1752951526393,45.69610859,176.8,176.79,1e-08]
[1752951526576,49.32329636,176.8,176.79,1e-08]
[1752951531310,42.78468397,176.79,176.78,1e-08]
[1752951531474,46.41187174,176.79,176.78,1e-08]
[1752951531676,47.11187174,176.79,176.78,1e-08]
[1752951532502,52.76830027,176.79,176.78,1e-08]
[1752951534015,31.65642853,176.79,176.78,1e-08]
[1752951534226,35.2836163,176.79,176.78,1e-08]
[1752951534409,31.65642853,176.79,176.78,1e-08]
[1752951534587,45.01642853,176.79,176.78,0.71000001]
[1752951535221,48.6436163,176.79,176.78,1e-08]
[1752951535889,48.6436163,176.79,176.78,0.71000001]
[1752951538313,48.6436163,176.79,176.78,1e-08]
[1752951544307,49.2936163,176.79,176.78,1e-08]
[1752951545004,48.6436163,176.79,176.78,1e-08]
[1752951548934,45.01642853,176.79,176.78,1e-08]
[1752951549239,48.6436163,176.79,176.78,1e-08]
[1752951549724,45.01642853,176.79,176.78,1e-08]
[1752951550035,48.6436163,176.79,176.78,1e-08]
[1752951551405,45.01642853,176.79,176.78,1e-08]
[1752951551621,48.6436163,176.79,176.78,1e-08]
[1752951552962,47.3383241,176.79,176.78,1e-08]
[1752951562007,47.9883241,176.79,176.78,1e-08]
[1752951562721,45.66642853,176.79,176.78,1e-08]
[1752951563030,47.3383241,176.79,176.78,1e-08]
[1752951563735,47.9983241,176.79,176.78,1e-08]
[1752951565232,48.0583241,176.79,176.78,1e-08]
[1752951570934,16.78468397,176.78,176.76,0.03]
[1752951571136,41.68189557,176.77,176.76,0.03]
[1752951571527,42.34189557,176.77,176.76,0.03]
[1752951572447,47.99896407,176.77,176.76,0.03]
[1752951572630,47.33896407,176.77,176.76,0.03]
[1752951578656,47.33896407,176.77,176.76,0.69]
[1752951578657,5.6570685,176.77,176.76,0.69]
[1752951578840,44.9970685,176.77,176.76,0.69]
[1752951580550,5.6567485,176.78,176.76,0.69]
[1752951580848,5.71649515,176.79,176.77,2.32189557]
[1752951581040,5.71649515,176.79,176.78,2.98189557]
[1752951581235,5.71642853,176.79,176.78,2.98189557]
[1752951581440,45.03642853,176.79,176.78,2.98189557]
[1752951581641,39.38,176.79,176.78,2.98189557]
[1752951582262,45.03642853,176.79,176.78,2.98189557]
[1752951585148,39.38,176.79,176.78,2.98189557]
[1752951585968,0.06,176.79,176.78,2.98189557]
[1752951587862,0.06,176.79,176.78,35.42029557]
[1752951589184,0.06,176.79,176.78,41.07704407]
[1752951590164,0.06,176.79,176.78,33.0984]
[1752951590352,0.06,176.79,176.78,35.42029557]
[1752951591262,0.06,176.79,176.78,9.42029557]
[1752951593072,0.06,176.79,176.78,10.723909]
[1752951599658,0.06,176.79,176.78,16.3806575]
[1752951600954,0.06,176.79,176.78,33.16534147]
[1752951601150,0.06,176.79,176.78,72.44534147]
[1752951604790,0.06,176.79,176.78,78.84534147]
[1752951605652,0.06,176.79,176.78,112.76534147]
[1752951610765,0.06,176.79,176.78,52.7784]
[1752951611077,0.06,176.79,176.78,62.0606575]
[1752951611275,0.06,176.79,176.78,13.4984]
[1752951611589,0.06,176.79,176.78,49.945509]
[1752951612293,0.06,176.79,176.78,10.685509]
[1752951616585,0.06,176.79,176.78,30.285509]
[1752951616900,0.06,176.79,176.78,3.625509]
[1752951617203,0.06,176.79,176.78,2.32047117]
[1752951618109,0.06,176.79,176.78,3.00047117]
[1752951619704,0.06,176.79,176.78,34.65721967]
[1752951620616,0.06,176.79,176.78,29.00047117]
[1752951620980,0.06,176.79,176.78,35.96112084]
[1752951622383,0.06,176.79,176.78,32.3367485]
[1752951622590,0.06,176.79,176.78,35.96112084]
[1752951624790,0.06,176.79,176.78,75.22112084]
[1752951626688,0.06,176.8,176.78,93.61930481]
[1752951626898,0.06,176.8,176.79,4.34437234]
[1752951628032,0.06,176.8,176.79,36.00080087]
[1752951628686,0.06,176.82,176.81,42.78468397]
[1752951628992,0.06,176.82,176.81,86.23463517]
[1752951629296,0.06,176.82,176.81,86.95463517]
[1752951629691,0.06,176.82,176.81,92.61042386]
[1752951630996,0.06,176.83,176.81,92.61042386]
[1752951631302,0.06,176.83,176.82,4.34437234]
[1752951631687,0.06,176.84,176.83,42.78468397]
[1752951631884,0.06,176.84,176.83,90.01342865]
[1752951632086,0.06,176.84,176.83,89.85894355]
[1752951632304,0.06,176.84,176.83,90.57894355]
[1752951632698,0.06,176.85,176.83,130.89894355]
[1752951633014,0.06,176.85,176.84,24.75342865]
[1752951633313,0.06,176.85,176.84,30.40825787]
[1752951635710,0.06,176.85,176.84,0.72]
[1752951636011,0.06,176.85,176.84,3.62437234]
[1752951636210,4.37437234,176.85,176.81,3.62437234]
[1752951636389,0.75,176.85,176.81,3.62437234]
[1752951636692,0.06,176.85,176.84,3.62437234]
[1752951637096,0.06,176.85,176.84,0.72]
[1752951637293,0.75,176.85,176.83,3.62437234]
[1752951637888,6.404622,176.85,176.82,3.62437234]
[1752951638097,5.714622,176.85,176.82,3.62437234]
[1752951638317,0.69,176.84,176.82,3.62437234]
[1752951638615,5.714622,176.85,176.82,3.62437234]
[1752951638914,0.69,176.84,176.82,3.62437234]
[1752951644613,0.75,176.85,176.83,3.62437234]
[1752951645595,0.06,176.85,176.83,3.62437234]
[1752951645792,0.06,176.85,176.83,0.72]
[1752951646230,0.06,176.85,176.84,3.62437234]
[1752951648515,0.06,176.85,176.84,4.34437234]
[1752951655230,0.06,176.85,176.84,3.62437234]
[1752951656533,0.06,176.85,176.84,4.29437234]
[1752951657828,0.06,176.85,176.84,0.67]
[1752951658054,0.06,176.85,176.84,4.29437234]
[1752951659435,0.06,176.85,176.84,3.62437234]
[1752951660131,0.77,176.85,176.84,3.62437234]
[1752951661334,6.42459254,176.85,176.83,0.03]
[1752951661837,0.71,176.84,176.83,0.03]
[1752951662826,6.36482922,176.84,176.83,0.03]
[1752951664212,0.71,176.84,176.83,0.03]
[1752951664421,0.06,176.85,176.83,0.03]
[1752951665019,0.77,176.85,176.83,0.03]
[1752951668140,0.77,176.85,176.84,4.29437234]
[1752951668141,0.06,176.85,176.84,4.29437234]
[1752951670425,0.06,176.85,176.84,3.62437234]
[1752951671148,0.06,176.85,176.83,3.65437234]
[1752951671529,0.77,176.85,176.83,3.65437234]
[1752951673752,0.06,176.85,176.83,4.32437234]
[1752951674148,0.06,176.85,176.83,3.65437234]
[1752951674749,0.71,176.84,176.83,0.03]
[1752951675628,6.36482922,176.84,176.83,0.03]
[1752951676434,9.98920156,176.84,176.83,0.03]
[1752951681740,5.714603,176.85,176.83,0.7]
[1752951681937,0.06,176.85,176.84,0.67]
[1752951682157,0.06,176.85,176.84,4.29437234]
[1752951682453,5.71450947,176.85,176.83,3.65437234]
[1752951682962,0.06,176.85,176.83,3.65437234]
[1752951683255,0.06,176.85,176.83,4.32437234]
[1752951685263,0.06,176.85,176.84,3.62437234]
[1752951685469,0.06,176.85,176.84,4.29437234]
[1752951697058,0.06,176.85,176.84,9.94920156]
[1752951698877,0.06,176.85,176.84,4.29437234]
[1752951700179,0.06,176.85,176.84,0.67]
[1752951700384,0.06,176.85,176.84,4.29437234]
[1752951700561,0.06,176.85,176.83,0.03]
[1752951700881,0.75,176.85,176.83,0.03]
[1752951701383,0.75,176.85,176.83,3.65437234]
[1752951701565,0.06,176.85,176.83,3.65437234]
[1752951702371,0.06,176.85,176.84,3.62437234]
[1752951702766,0.06,176.85,176.84,4.29437234]
[1752951705173,0.06,176.85,176.84,9.94920156]
[1752951706278,0.06,176.85,176.84,3.62437234]
[1752951706488,0.06,176.85,176.84,29.62437234]
[1752951706716,0.06,176.85,176.84,3.62437234]
[1752951706999,0.06,176.85,176.84,4.29437234]
[1752951711303,0.06,176.85,176.84,9.94920156]
[1752951711593,0.06,176.85,176.84,35.94920156]
[1752951715189,0.06,176.85,176.84,35.97920156]
[1752951719276,0.06,176.85,176.84,91.98388553]
[1752951719604,0.06,176.85,176.84,95.60825787]
[1752951720392,0.06,176.86,176.84,109.92825787]
[1752951720601,0.06,176.88,176.87,33.92]
[1752951720887,0.06,176.88,176.87,76.76437234]
[1752951721098,0.06,176.89,176.88,45.10107993]
[1752951721309,0.06,176.89,176.88,51.45463035]
[1752951723022,0.06,176.89,176.88,52.75805377]
[1752951725025,0.06,176.89,176.88,53.32340881]
[1752951725715,0.06,176.89,176.88,61.24340881]
[1752951725915,0.06,176.92,176.88,61.24340881]
[1752951725916,0.06,176.92,176.9,76.70468397]
[1752951726119,0.06,176.92,176.91,43.40507855]
[1752951726420,0.06,176.92,176.91,44.10507855]
[1752951727925,0.06,176.92,176.91,49.75767026]
[1752951728143,0.06,176.92,176.91,49.19241109]
[1752951729807,0.06,176.92,176.91,49.75767026]
[1752951730338,0.06,176.92,176.91,49.19241109]
[1752951731920,0.06,176.92,176.91,55.59241109]
[1752951733242,0.06,176.95,176.92,50.70468397]
[1752951733417,0.06,176.95,176.92,65.04432273]
[1752951733640,0.06,176.95,176.94,26.0]
[1752951733845,0.06,176.95,176.94,72.43963876]
[1752951734149,0.06,176.95,176.94,73.13963876]
[1752951734952,0.06,176.95,176.94,75.1714527]
[1752951735115,0.06,176.95,176.94,78.79127208]
[1752951735646,0.06,176.95,176.94,112.71127208]
[1752951737851,0.06,176.95,176.94,119.11127208]
[1752951739067,0.06,176.95,176.94,135.89595605]
[1752951741548,0.06,176.95,176.94,75.21981938]
[1752951743357,0.06,176.95,176.94,75.87981938]
[1752951744750,0.06,176.95,176.94,81.5314527]
[1752951746434,0.06,176.95,176.94,101.93595605]
[1752951746828,0.06,176.95,176.94,92.66450335]
[1752951748037,0.06,176.95,176.94,75.21981938]
[1752951751348,0.06,176.95,176.94,75.87981938]
[1752951752534,0.06,176.95,176.94,69.47981938]
[1752951755741,0.06,176.95,176.94,68.81981938]
[1752951756546,0.77,176.95,176.91,40.95]
[1752951756756,0.77,176.95,176.91,40.29]
[1752951756943,0.77,176.95,176.94,2.31642663]
[1752951758054,0.77,176.95,176.92,70.85220325]
[1752951758246,0.77,176.95,176.94,2.31642663]
[1752951758960,0.77,176.95,176.94,3.61889191]
[1752951759142,0.06,176.95,176.94,3.61889191]
[1752951759859,0.77,176.95,176.94,3.61889191]
[1752951761439,0.06,176.95,176.94,3.61889191]
[1752951762060,0.06,176.95,176.94,9.93052523]
[1752951762267,0.06,176.95,176.94,4.27889191]
[1752951763197,0.06,176.95,176.94,49.13052523]
[1752951763363,0.06,176.95,176.94,101.93410111]
[1752951766169,0.06,176.95,176.94,135.82410111]
[1752951769364,0.06,176.95,176.94,109.82410111]
[1752951770144,0.06,176.95,176.94,110.38926444]
[1752951771672,0.06,176.95,176.94,103.98926444]
[1752951771868,0.06,176.96,176.95,16.78468397]
[1752951772167,0.06,176.96,176.95,57.12660727]
[1752951772349,0.2,176.97,176.96,54.29357588]
[1752951772672,0.06,176.99,176.97,50.67468397]
[1752951772850,0.06,176.99,176.98,93.47357588]
[1752951773056,0.06,177.01,176.99,50.67468397]
[1752951773354,0.06,177.01,177.0,42.79889191]
[1752951773655,0.06,177.01,177.0,43.45889191]
[1752951774046,0.06,177.01,177.0,49.10860942]
[1752951775371,0.06,177.01,177.0,49.32261532]
[1752951776162,0.06,177.01,177.0,55.72261532]
[1752951777172,0.06,177.01,177.0,72.50729929]
[1752951779376,0.06,177.01,177.0,106.39729929]
[1752951779790,0.06,177.03,177.02,42.78468397]
[1752951779953,0.06,177.03,177.02,89.20246779]
[1752951780276,0.06,177.03,177.02,90.07644951]
[1752951780859,0.06,177.03,177.02,95.72552871]
[1752951782049,0.06,177.03,177.02,96.29043663]
[1752951783264,0.06,177.03,177.02,130.18043663]
[1752951783465,0.06,177.03,177.02,129.61552871]
[1752951783859,0.06,177.03,177.02,136.01552871]
[1752951786070,0.06,177.05,177.03,57.07468397]
[1752951786382,0.06,177.05,177.04,60.12841998]
[1752951786571,0.06,177.05,177.04,60.78841998]
[1752951787172,0.06,177.05,177.04,66.43686101]
[1752951787982,0.06,177.05,177.04,65.87201691]
[1752951789160,0.06,177.05,177.04,23.093125]
[1752951789365,0.78,177.05,177.04,65.21201691]
[1752951789563,0.78,177.05,177.04,65.16]
[1752951789764,0.78,177.05,177.04,39.16]
[1752951790085,0.78,177.05,177.04,65.16]
[1752951791290,0.78,177.05,177.03,45.56]
[1752951791591,0.78,177.05,177.03,32.4]
[1752951792296,11.6517415,177.05,177.02,0.21398172]
[1752951792490,0.72,177.04,177.02,0.21398172]
[1752951793687,0.72,177.03,177.02,0.21398172]
[1752951795394,4.33889191,177.03,177.02,0.21398172]
[1752951795589,9.987652,177.03,177.02,0.21398172]
[1752951798284,9.987652,177.03,176.97,71.56]
[1752951798480,3.61889191,177.01,176.97,65.16]
[1752951798684,0.72,177.0,176.97,26.0]
[1752951799902,0.72,177.0,176.98,0.03]
[1752951804403,0.72,176.99,176.98,0.03]
[1752951808780,0.72,177.0,176.98,0.03]
[1752951809188,0.72,176.99,176.98,0.03]
[1752951809607,0.72,177.0,176.98,0.03]
[1752951811106,3.61889191,176.99,176.98,0.03]
[1752951811512,4.33889191,176.99,176.98,0.03]
[1752951812809,9.98892863,176.99,176.98,0.03]
[1752951815007,0.72,176.99,176.98,0.03]
[1752951815212,6.37003672,176.99,176.98,0.03]
[1752951815592,9.98892863,176.99,176.98,0.03]
[1752951820898,3.61889191,176.96,176.95,0.19499322]
[1752951821093,3.61889191,176.96,176.93,0.03]
[1752951821293,3.61889191,176.94,176.93,0.03]
[1752951821700,4.33889191,176.94,176.93,0.03]
[1752951822807,9.99052523,176.94,176.93,0.03]
[1752951823185,0.72,176.94,176.93,0.03]
[1752951823391,4.33889191,176.94,176.93,0.03]
[1752951826411,3.61889191,176.94,176.93,0.03]
[1752951827623,4.33889191,176.94,176.93,0.03]
[1752951828895,3.61889191,176.94,176.93,0.03]
[1752951829919,9.99024466,176.95,176.93,0.03]
[1752951830292,4.33889191,176.95,176.93,0.03]
[1752951831015,9.9902366,176.95,176.93,0.03]
[1752951833019,3.61889191,176.95,176.93,0.03]
[1752951834315,4.31889191,176.95,176.93,0.03]
[1752951838731,3.61889191,176.94,176.93,0.03]
[1752951840327,3.61889191,176.95,176.93,0.03]
[1752951840901,2.31724395,176.95,176.93,0.03]
[1752951841516,3.01724395,176.96,176.93,0.03]
[1752951841713,3.01724395,176.96,176.93,0.72]
[1752951841926,8.66826894,176.96,176.93,0.03]
[1752951843120,7.96826894,176.96,176.93,0.03]
[1752951843429,2.31724395,176.94,176.93,0.03]
[1752951843812,3.01724395,176.94,176.93,0.03]
[1752951846925,4.32141129,176.94,176.93,0.03]
[1752951847334,9.97304461,176.94,176.93,0.03]
[1752951849635,13.5944559,176.94,176.93,0.03]
[1752951850716,13.5944559,176.94,176.93,1e-08]
[1752951851125,30.37913987,176.94,176.93,1e-08]
[1752951851620,6.35163332,176.94,176.93,1e-08]
[1752951851942,9.97304461,176.94,176.93,1e-08]
[1752951852730,6.35163332,176.94,176.93,1e-08]
[1752951852920,9.97304461,176.94,176.93,1e-08]
[1752951854031,13.5944559,176.94,176.93,1e-08]
[1752951856741,9.97304461,176.94,176.93,1e-08]
[1752951856938,13.5944559,176.94,176.93,1e-08]
[1752951858440,30.37913987,176.94,176.93,1e-08]
[1752951863040,42.78468397,176.91,176.9,0.03]
[1752951863246,85.60609526,176.91,176.9,0.03]
[1752951863427,86.28609526,176.91,176.9,0.03]
[1752951864423,91.93868697,176.91,176.9,0.03]
[1752951868953,90.63649361,176.91,176.9,0.03]
[1752951869940,73.17180964,176.91,176.9,0.03]
[1752951870841,73.85180964,176.91,176.9,0.03]
[1752951871028,73.85180964,176.91,176.89,0.03]
[1752951871225,2.99921793,176.9,176.89,0.03]
[1752951872155,7.97212917,176.9,176.89,0.03]
[1752951872654,5.65291124,176.9,176.89,0.74]
[1752951872955,44.85291124,176.9,176.89,0.74]
[1752951873930,47.85212917,176.9,176.89,0.03]
[1752951875034,49.1577294,176.9,176.89,0.03]
[1752951878032,5.65355042,176.88,176.85,0.20630546]
[1752951878233,3.62481816,176.86,176.85,0.20630546]
[1752951879659,3.62481816,176.86,176.85,0.91630546]
[1752951879959,39.2,176.87,176.85,0.91630546]
[1752951880145,44.85403301,176.87,176.85,0.91630546]
[1752951880346,48.47885117,176.87,176.86,0.71]
[1752951880558,44.85403301,176.87,176.86,0.71]
[1752951886768,48.47885117,176.87,176.86,0.71]
[1752951890963,49.15885117,176.87,176.85,0.20630546]
[1752951891149,4.30481816,176.86,176.85,0.20630546]
[1752951891336,9.95900791,176.86,176.85,0.20630546]
[1752951899751,13.58382607,176.86,176.84,0.03]
[1752951900051,47.12963632,176.85,176.84,0.03]
[1752951901167,52.78414579,176.85,176.82,0.03]
[1752951901367,3.62481816,176.83,176.82,0.03]
[1752951901569,42.84481816,176.83,176.82,0.03]
[1752951902071,43.50481816,176.83,176.82,0.03]
[1752951902471,43.50481816,176.83,176.82,1e-08]
[1752951903258,49.15996717,176.83,176.82,1e-08]
[1752951904774,48.49996717,176.83,176.82,1e-08]
[1752951907874,9.27996717,176.83,176.82,1e-08]
[1752951908073,48.49996717,176.83,176.82,1e-08]
[1752951909585,49.15996717,176.83,176.82,1e-08]
[1752951910995,26.72465114,176.83,176.82,1e-08]
[1752951911273,65.94465114,176.83,176.82,1e-08]
[1752951914560,42.78468397,176.81,176.8,1e-08]
[1752951914795,85.62950213,176.81,176.78,0.03]
[1752951914982,3.62481816,176.79,176.78,0.03]
[1752951915294,42.84481816,176.79,176.78,1e-08]
[1752951915463,43.50481816,176.79,176.78,1e-08]
[1752951915891,49.16124669,176.79,176.78,1e-08]
[1752951917058,48.50124669,176.79,176.78,1e-08]
[1752951918188,65.94593066,176.79,176.78,1e-08]
[1752951920284,16.78468397,176.78,176.75,0.03]
[1752951920497,3.62481816,176.76,176.75,0.03]
[1752951920997,4.28481816,176.76,176.75,0.03]
[1752951921165,4.28481816,176.76,176.74,0.03]
[1752951921363,43.50481816,176.75,176.74,1e-08]
[1752951922366,65.94721075,176.75,176.73,1e-08]
[1752951922581,21.06950213,176.74,176.72,1e-08]
[1752951922759,59.62950213,176.73,176.72,1e-08]
[1752951923279,60.33950213,176.73,176.72,1e-08]
[1752951924086,59.62950213,176.73,176.72,1e-08]
[1752951924386,65.28785102,176.73,176.72,1e-08]
[1752951924766,65.99785102,176.73,176.72,1e-08]